bitfinex-derivatives/quotes_BTCF0:USTF0_20250211
["timestamp","ask_amount","ask_price","bid_price","bid_amount"]
[1739246259274,0.2047532,97664.0,97662.0,0.002]
[1739246269671,0.2047532,97664.0,97663.0,0.01148231]
[1739246271172,0.2047532,97664.0,97663.0,0.01248231]
[1739246272275,0.2047532,97664.0,97663.0,0.01348231]
[1739246273774,0.2047532,97664.0,97663.0,0.002]
[1739246274077,0.2047532,97664.0,97663.0,0.01346824]
[1739246275671,0.2047532,97664.0,97663.0,0.002]
[1739246277580,0.25454074,97664.0,97663.0,0.002]
[1739246281273,0.94454074,97664.0,97663.0,0.002]
[1739246281677,0.25454074,97664.0,97663.0,0.002]
[1739246281875,0.04978754,97664.0,97663.0,0.002]
[1739246282483,0.2047172,97682.0,97670.0,0.2047404]
[1739246282680,0.0639,97683.0,97672.0,0.2047362]
[1739246282988,0.41889196,97687.0,97672.0,0.3608]
[1739246282989,0.21418506,97687.0,97672.0,0.3608]
[1739246283285,0.21418506,97687.0,97683.0,0.2047132]
[1739246283681,0.21418506,97687.0,97680.0,0.0666]
[1739246283883,0.21418506,97687.0,97686.0,0.2047069]
[1739246285885,0.2047041,97688.0,97686.0,0.2047069]
[1739246286082,0.2047041,97688.0,97686.0,0.2057069]
[1739246287589,0.2047041,97688.0,97686.0,0.2067069]
[1739246287986,0.2047041,97688.0,97686.0,0.2057069]
[1739246288291,0.2047041,97688.0,97686.0,0.2067069]
[1739246290487,0.2047041,97688.0,97686.0,0.002]
[1739246296098,0.35812296,97688.0,97686.0,0.002]
[1739246300097,0.2047041,97688.0,97686.0,0.002]
[1739246307697,0.2047041,97688.0,97687.0,0.01137572]
[1739246308505,0.2047041,97688.0,97687.0,0.01138403]
[1739246309006,0.2047041,97688.0,97687.0,0.01238403]
[1739246310206,0.2047041,97688.0,97687.0,0.01338403]
[1739246310603,0.2047041,97688.0,97687.0,0.01339128]
[1739246313011,0.2047041,97688.0,97687.0,0.002]
[1739246321017,0.2047041,97688.0,97687.0,0.01344581]
[1739246323419,0.2047041,97688.0,97687.0,0.01343316]
[1739246328013,0.2047041,97688.0,97687.0,0.002]
[1739246330332,0.25410847,97688.0,97687.0,0.002]
[1739246334623,0.25410847,97688.0,97687.0,0.001]
[1739246335625,0.2047174,97681.0,97680.0,0.2047176]
[1739246343941,0.2047065,97687.0,97686.0,0.2047066]
[1739246344142,4.038e-05,97688.0,97686.0,0.2047066]
[1739246345150,4.038e-05,97688.0,97686.0,0.2057066]
[1739246346140,4.038e-05,97688.0,97687.0,0.06652]
[1739246348140,4.038e-05,97688.0,97687.0,0.06752]
[1739246351254,4.038e-05,97688.0,97687.0,0.07782202]
[1739246363966,4.038e-05,97688.0,97687.0,0.43862202]
[1739246366164,4.038e-05,97688.0,97687.0,0.07782202]
[1739246366365,4.038e-05,97688.0,97687.0,0.43862202]
[1739246367658,4.038e-05,97688.0,97687.0,0.64332682]
[1739246369969,4.038e-05,97688.0,97687.0,0.21600682]
[1739246370160,4.038e-05,97688.0,97687.0,0.28248682]
[1739246370965,4.038e-05,97688.0,97687.0,0.46638949]
[1739246373267,4.038e-05,97688.0,97687.0,0.39990949]
[1739246373469,4.038e-05,97688.0,97687.0,0.46638949]
[1739246374864,4.038e-05,97688.0,97687.0,0.28248682]
[1739246379267,4.038e-05,97688.0,97687.0,0.64328682]
[1739246382572,4.038e-05,97688.0,97687.0,0.28248682]
[1739246382774,0.20474308,97688.0,97687.0,0.28248682]
[1739246383460,0.20474308,97688.0,97687.0,0.21600682]
[1739246384076,4.038e-05,97688.0,97687.0,0.21600682]
[1739246389171,4.038e-05,97688.0,97687.0,0.21500682]
[1739246389378,4.038e-05,97688.0,97687.0,0.21600682]
[1739246392481,4.038e-05,97688.0,97687.0,0.001]
[1739246397778,0.36084038,97688.0,97687.0,0.001]
[1739246398079,0.2047132,97683.0,97682.0,0.30713223]
[1739246398279,0.2047132,97683.0,97682.0,0.31850459]
[1739246398581,0.2047132,97683.0,97682.0,0.30713223]
[1739246399281,0.204732,97674.0,97673.0,0.36855868]
[1739246399475,0.565532,97674.0,97673.0,0.37992821]
[1739246399675,0.565532,97674.0,97673.0,0.01136953]
[1739246400076,0.2047383,97671.0,97670.0,0.18402294]
[1739246400286,0.2047383,97671.0,97670.0,0.19539]
[1739246401285,0.2047383,97671.0,97670.0,0.19542745]
[1739246402287,0.2047383,97671.0,97670.0,0.19642745]
[1739246402589,0.2047383,97671.0,97670.0,0.18502294]
[1739246403685,0.2047383,97671.0,97670.0,0.001]
[1739246404880,0.21516056,97671.0,97670.0,0.001]
[1739246410487,0.2047572,97662.0,97661.0,0.00015361]
[1739246410686,0.5655572,97662.0,97661.0,0.00015361]
[1739246411892,0.5655572,97662.0,97661.0,0.00815361]
[1739246413302,0.5655572,97662.0,97661.0,0.01115361]
[1739246420893,0.3608,97662.0,97646.0,0.01007693]
[1739246421098,0.2047866,97648.0,97647.0,0.01165914]
[1739246421399,0.3608,97654.0,97647.0,0.01166297]
[1739246421600,0.2047845,97649.0,97648.0,0.01166297]
[1739246423003,0.2047845,97649.0,97648.0,0.02666297]
[1739246423696,0.2047845,97649.0,97648.0,0.03366297]
[1739246428292,0.21512289,97649.0,97648.0,0.03366297]
[1739246430094,0.21512289,97649.0,97648.0,0.03371472]
[1739246433098,0.21512289,97649.0,97648.0,0.21773766]
[1739246433711,0.21512289,97649.0,97648.0,0.20602294]
[1739246438016,0.21512289,97649.0,97648.0,0.022]
[1739246440109,0.90512289,97649.0,97648.0,0.022]
[1739246441419,0.21512289,97649.0,97648.0,0.022]
[1739246442412,0.57592289,97649.0,97648.0,0.022]
[1739246442611,0.56948289,97649.0,97648.0,0.022]
[1739246451615,0.56948289,97649.0,97648.0,0.03366713]
[1739246453824,0.56948289,97649.0,97648.0,0.022]
[1739246454719,0.20868289,97649.0,97648.0,0.03348569]
[1739246454919,0.20868289,97649.0,97648.0,0.022]
[1739246457932,0.20868289,97649.0,97648.0,0.03349442]
[1739246459025,0.20868289,97649.0,97648.0,0.0334715]
[1739246460531,0.15429029,97653.0,97648.0,0.03346439]
[1739246460724,0.35839269,97653.0,97652.0,0.2047782]
[1739246461533,0.35839269,97653.0,97652.0,0.2162062]
[1739246461833,0.35839269,97653.0,97652.0,0.2047782]
[1739246462235,0.35939269,97653.0,97652.0,0.2047782]
[1739246462434,0.15461029,97653.0,97652.0,0.21486631]
[1739246462633,0.15461029,97653.0,97652.0,0.22625277]
[1739246462822,0.15461029,97653.0,97652.0,0.23225277]
[1739246463132,0.14663029,97653.0,97652.0,0.24525277]
[1739246467438,0.001,97653.0,97652.0,0.24525277]
[1739246468826,0.001,97653.0,97652.0,0.24526706]
[1739246469733,0.001,97653.0,97652.0,0.60606706]
[1739246474133,0.001,97653.0,97652.0,0.60611099]
[1739246477042,0.001,97653.0,97652.0,0.6248914]
[1739246477538,0.2047619,97660.0,97659.0,0.2047635]
[1739246477752,0.2047619,97660.0,97659.0,0.21620818]
[1739246478043,0.2047619,97660.0,97659.0,0.2047635]
[1739246478333,0.2047619,97660.0,97652.0,0.38988811]
[1739246478334,0.3608,97667.0,97661.0,0.2047584]
[1739246478537,0.5655472,97667.0,97661.0,0.2047584]
[1739246478739,0.3608,97667.0,97661.0,0.2047584]
[1739246478947,0.2047514,97665.0,97661.0,0.2047584]
[1739246479138,0.2047514,97665.0,97662.0,0.2047566]
[1739246480141,0.2047546,97664.0,97662.0,0.2047566]
[1739246480540,0.2047546,97664.0,97662.0,0.2077566]
[1739246481042,0.2047546,97664.0,97662.0,0.2137566]
[1739246483546,0.2046246,97664.0,97662.0,0.009]
[1739246484044,0.0944,97663.0,97662.0,0.009]
[1739246485848,0.0944,97663.0,97662.0,0.006]
[1739246486037,0.0944,97663.0,97662.0,0.02050545]
[1739246487833,0.0944,97663.0,97662.0,0.02049099]
[1739246495746,0.0944,97663.0,97662.0,0.009]
[1739246496037,0.0944,97663.0,97662.0,0.02054813]
[1739246496245,0.0944,97663.0,97662.0,0.02055149]
[1739246497946,0.0944,97663.0,97662.0,0.02055876]
[1739246502341,0.0944,97663.0,97662.0,0.03936234]
[1739246503254,0.3608,97669.0,97662.0,0.03936234]
[1739246503447,0.3608,97669.0,97668.0,0.2047446]
[1739246503648,0.3608,97669.0,97668.0,0.23510694]
[1739246504357,0.00015361,97671.0,97669.0,0.2047412]
[1739246504543,0.00015361,97671.0,97670.0,0.03065202]
[1739246505242,0.00015361,97671.0,97670.0,0.04238899]
[1739246508451,0.00015361,97671.0,97670.0,0.0421269]
[1739246510453,0.00015361,97671.0,97670.0,0.0421397]
[1739246510651,0.00015361,97671.0,97670.0,0.05243764]
[1739246510959,0.30412418,97684.0,97678.0,0.2047226]
[1739246510960,0.204723,97679.0,97678.0,0.2047226]
[1739246512561,0.206723,97679.0,97678.0,0.2047226]
[1739246512858,0.212723,97679.0,97678.0,0.2047226]
[1739246515451,0.212723,97679.0,97678.0,0.21625413]
[1739246516264,0.212723,97679.0,97678.0,0.24645413]
[1739246517858,0.008,97679.0,97678.0,0.24645413]
[1739246518859,0.008,97679.0,97678.0,0.24640844]
[1739246521161,0.008,97679.0,97678.0,0.24630276]
[1739246523255,0.008,97679.0,97678.0,0.21610276]
[1739246523460,0.008,97679.0,97678.0,0.2047226]
[1739246525364,0.008,97679.0,97676.0,0.24560871]
[1739246525365,0.00015361,97688.0,97687.0,0.2047048]
[1739246525666,0.00015361,97688.0,97687.0,0.5655048]
[1739246526567,0.00315361,97688.0,97687.0,0.5655048]
[1739246527267,0.00515361,97688.0,97687.0,0.5665048]
[1739246527665,0.00515361,97688.0,97687.0,0.57685075]
[1739246528055,0.00515361,97688.0,97687.0,0.57585075]
[1739246528261,0.00215361,97688.0,97687.0,0.57585075]
[1739246528465,0.00315361,97688.0,97687.0,0.57585075]
[1739246528764,0.1,97700.0,97699.0,0.2046797]
[1739246529068,0.1,97700.0,97699.0,0.64308504]
[1739246529569,0.1,97700.0,97699.0,0.6318397]
[1739246529969,0.1,97700.0,97699.0,0.6328397]
[1739246530772,0.00015361,97709.0,97699.0,0.42816]
[1739246530971,0.00015361,97709.0,97704.0,0.2046688]
[1739246532073,0.00015361,97709.0,97705.0,0.2046666]
[1739246533177,0.00015361,97709.0,97705.0,0.2056666]
[1739246533377,0.00015361,97709.0,97705.0,0.5664666]
[1739246534175,0.00015361,97709.0,97706.0,0.2046639]
[1739246535482,0.00015361,97709.0,97706.0,0.2056639]
[1739246535780,0.20481311,97709.0,97706.0,0.2056639]
[1739246538688,0.00015361,97709.0,97706.0,0.001]
[1739246538884,0.00015361,97709.0,97708.0,0.2046608]
[1739246539786,0.0318,97712.0,97711.0,0.2046545]
[1739246540985,0.0318,97712.0,97711.0,0.2056545]
[1739246542880,0.0318,97712.0,97711.0,0.001]
[1739246543675,0.0318,97712.0,97711.0,0.01251362]
[1739246545393,0.0318,97712.0,97711.0,0.001]
[1739246552789,0.0318,97712.0,97711.0,0.01264695]
[1739246554295,0.0318,97712.0,97711.0,0.01269077]
[1739246555192,0.0318,97712.0,97711.0,0.03140883]
[1739246556400,0.0318,97712.0,97711.0,0.03142886]
[1739246559293,0.2046512,97713.0,97711.0,0.03142886]
[1739246559497,0.2046512,97713.0,97712.0,0.03037997]
[1739246562503,0.2046512,97713.0,97712.0,0.03137997]
[1739246564509,0.2046512,97713.0,97712.0,0.001]
[1739246564802,0.2046512,97713.0,97712.0,0.01976327]
[1739246566407,0.2046512,97713.0,97712.0,0.001]
[1739246569813,0.2046512,97713.0,97706.0,0.30674033]
[1739246569814,0.2046629,97707.0,97706.0,0.30674033]
[1739246570405,0.2362629,97707.0,97706.0,0.30674033]
[1739246570603,0.2362629,97707.0,97706.0,0.18403179]
[1739246572304,0.2372629,97707.0,97706.0,0.18403179]
[1739246574014,0.2372629,97707.0,97690.0,0.05071968]
[1739246574015,0.08237292,97707.0,97690.0,0.05071968]
[1739246574210,0.2046964,97691.0,97690.0,0.05071968]
[1739246574510,0.2046964,97691.0,97690.0,0.00015361]
[1739246574702,0.2046964,97691.0,97690.0,0.20485211]
[1739246575107,0.2046964,97691.0,97690.0,0.20585211]
[1739246575409,0.2046964,97691.0,97690.0,0.21085211]
[1739246575918,0.2046964,97691.0,97690.0,0.22224079]
[1739246576108,0.2046964,97691.0,97690.0,0.21724079]
[1739246576415,0.2046964,97691.0,97690.0,0.22224079]
[1739246581013,7.757e-05,97700.0,97690.0,0.01754229]
[1739246581313,0.2046849,97697.0,97696.0,0.2046853]
[1739246584418,0.2046849,97697.0,97696.0,0.2056853]
[1739246585509,0.2046849,97697.0,97696.0,0.001]
[1739246589811,0.21482206,97697.0,97696.0,0.001]
[1739246595118,0.2046849,97697.0,97696.0,0.001]
[1739246603423,0.69,97697.0,97690.0,0.00015361]
[1739246603620,0.5654964,97691.0,97690.0,0.00015361]
[1739246604824,0.5654964,97691.0,97690.0,0.00115361]
[1739246605024,0.5654964,97691.0,97690.0,0.00615361]
[1739246607033,0.5979964,97691.0,97690.0,0.00615361]
[1739246607227,0.5979964,97691.0,97690.0,0.00115361]
[1739246607532,0.5979964,97691.0,97690.0,0.00615361]
[1739246609037,0.2046964,97691.0,97690.0,0.00615361]
[1739246609234,0.2046964,97691.0,97690.0,0.21085211]
[1739246612734,0.2046964,97691.0,97690.0,0.39509404]
[1739246613442,0.2046964,97691.0,97690.0,0.40512478]
[1739246616043,0.2046964,97691.0,97690.0,0.22088285]
[1739246619748,7.757e-05,97700.0,97695.0,0.2046877]
[1739246620134,0.2046844,97697.0,97696.0,0.2046857]
[1739246620543,7.757e-05,97700.0,97698.0,0.2046803]
[1739246621845,0.20475717,97700.0,97698.0,0.2046803]
[1739246623938,0.2046855,97697.0,97695.0,0.3608]
[1739246624545,0.2046855,97697.0,97695.0,0.5654876]
[1739246626140,0.2046855,97697.0,97695.0,0.5674876]
[1739246629847,0.2046855,97697.0,97696.0,0.01130801]
[1739246631342,0.2046855,97697.0,97696.0,0.0112989]
[1739246633047,0.2056855,97697.0,97696.0,0.0112989]
[1739246639663,0.2056855,97697.0,97696.0,0.01129656]
[1739246644052,0.2056855,97697.0,97695.0,0.5660076]
[1739246644253,0.2056855,97697.0,97695.0,0.5654876]
[1739246650863,0.2056855,97697.0,97695.0,0.2046876]
[1739246651061,0.2056855,97697.0,97695.0,0.5654876]
[1739246651460,0.2056855,97697.0,97696.0,0.18398867]
[1739246655675,0.001,97697.0,97694.0,0.30674033]
[1739246655877,0.2046859,97696.0,97694.0,0.30674033]
[1739246656684,0.0307,97695.0,97694.0,0.30674033]
[1739246659079,0.2046943,97692.0,97691.0,0.18415861]
[1739246660185,0.5654943,97692.0,97691.0,0.18415861]
[1739246660879,0.5654943,97692.0,97691.0,0.18715861]
[1739246662382,0.5654943,97692.0,97691.0,0.003]
[1739246669391,0.2046943,97692.0,97691.0,0.003]
[1739246669594,0.5654943,97692.0,97691.0,0.003]
[1739246670986,0.3608,97692.0,97679.0,0.0004516]
[1739246671187,0.2047195,97680.0,97679.0,0.0004516]
[1739246672294,0.2047195,97680.0,97679.0,0.0114516]
[1739246672990,0.2047195,97680.0,97679.0,0.0154516]
[1739246673387,0.21492656,97680.0,97679.0,0.0154516]
[1739246673891,0.21492656,97680.0,97679.0,0.0144516]
[1739246688001,0.57572656,97680.0,97679.0,0.0144516]
[1739246697706,0.21492656,97680.0,97679.0,0.0144516]
[1739246699206,0.57572656,97680.0,97679.0,0.0144516]
[1739246701098,0.5655195,97680.0,97679.0,0.0144516]
[1739246702606,0.2047195,97680.0,97679.0,0.0144516]
[1739246702909,0.3608,97691.0,97683.0,0.2047121]
[1739246703204,0.3608,97691.0,97679.0,0.0144516]
[1739246703205,0.2046906,97694.0,97681.0,0.3608]
[1739246703407,0.41297936,97700.0,97687.0,0.2047041]
[1739246704308,0.204701,97689.0,97687.0,0.2047041]
[1739246704813,0.2047111,97684.0,97683.0,0.01]
[1739246705607,0.2047111,97684.0,97683.0,0.007]
[1739246706114,0.3608,97691.0,97687.0,0.004]
[1739246706306,0.2046985,97690.0,97688.0,0.24514333]
[1739246708509,0.2046985,97690.0,97688.0,0.24714333]
[1739246708711,0.69,97689.0,97688.0,0.24714333]
[1739246709413,0.69,97689.0,97688.0,0.25114333]
[1739246709609,1.1005798,97689.0,97688.0,0.006]
[1739246712006,1.0508,97689.0,97688.0,0.006]
[1739246714407,0.3608,97689.0,97688.0,0.006]
[1739246716312,0.2046985,97690.0,97688.0,0.006]
[1739246721423,0.2046985,97690.0,97688.0,0.2107009]
[1739246724218,0.2046985,97690.0,97688.0,0.006]
[1739246724823,0.69,97689.0,97688.0,0.006]
[1739246725826,0.2046985,97690.0,97688.0,0.002]
[1739246726024,0.2046985,97690.0,97688.0,0.006]
[1739246740747,0.0317,97689.0,97688.0,0.006]
[1739246740941,0.0647,97689.0,97688.0,0.006]
[1739246751759,0.2694006,97689.0,97688.0,0.006]
[1739246754556,0.00064,97695.0,97693.0,0.2046916]
[1739246754753,0.2046799,97699.0,97689.0,0.0306]
[1739246754954,0.2046799,97699.0,97698.0,0.3608]
[1739246756351,0.2056799,97699.0,97698.0,0.5654818]
[1739246757353,0.2086799,97699.0,97698.0,0.57595122]
[1739246757557,0.004,97699.0,97698.0,0.57595122]
[1739246762063,0.2046427,97717.0,97698.0,0.37126942]
[1739246762264,0.2046427,97717.0,97712.0,0.3608]
[1739246762458,0.2046462,97715.0,97712.0,0.3608]
[1739246763564,0.2056462,97715.0,97712.0,0.3608]
[1739246763859,0.35912707,97715.0,97712.0,0.3608]
[1739246764268,0.35912707,97715.0,97712.0,0.37127613]
[1739246764568,0.36012707,97715.0,97712.0,0.37227613]
[1739246767467,0.2066462,97715.0,97712.0,0.37227613]
[1739246772478,0.2066462,97715.0,97712.0,0.01147613]
[1739246772677,0.2066462,97715.0,97712.0,0.37227613]
[1739246773760,0.2066462,97715.0,97712.0,0.57692803]
[1739246774467,0.2066462,97715.0,97713.0,0.2046491]
[1739246775766,0.2056462,97715.0,97713.0,0.2046491]
[1739246775963,0.2066462,97715.0,97713.0,0.2056491]
[1739246776868,0.001,97715.0,97713.0,0.2056491]
[1739246777070,0.001,97715.0,97714.0,0.01129531]
[1739246778065,0.001,97715.0,97714.0,0.02729037]
[1739246778373,0.001,97715.0,97714.0,0.38809037]
[1739246778868,0.001,97715.0,97714.0,0.37309531]
[1739246780573,0.001,97715.0,97714.0,0.38909068]
[1739246783567,0.001,97715.0,97714.0,0.02829068]
[1739246787075,0.001,97715.0,97714.0,0.01265549]
[1739246787278,0.001,97715.0,97714.0,0.02865109]
[1739246787776,0.001,97715.0,97714.0,0.02866565]
[1739246791176,0.001,97715.0,97714.0,0.04785309]
[1739246792478,0.034,97715.0,97714.0,0.02866565]
[1739246792683,0.034,97715.0,97714.0,0.01267005]
[1739246793074,0.033,97715.0,97714.0,0.01167005]
[1739246793274,0.034,97715.0,97714.0,0.03164966]
[1739246796181,0.034,97715.0,97714.0,0.03175852]
[1739246796976,0.001,97715.0,97714.0,0.03175852]
[1739246800186,0.001,97715.0,97714.0,0.07334761]
[1739246801485,0.001,97715.0,97714.0,0.04775432]
[1739246801872,0.001,97715.0,97714.0,0.25140262]
[1739246802578,0.00015352,97723.0,97714.0,0.04675432]
[1739246802779,0.00015352,97723.0,97716.0,0.2046429]
[1739246802984,0.00015352,97723.0,97717.0,0.03075852]
[1739246803190,0.00015352,97723.0,97718.0,0.03075852]
[1739246803377,0.20478502,97723.0,97719.0,0.03075852]
[1739246803577,0.20478502,97723.0,97720.0,0.03075852]
[1739246803786,0.20478502,97723.0,97721.0,0.01182995]
[1739246803988,0.20478502,97723.0,97722.0,0.01182995]
[1739246806288,0.20578502,97723.0,97722.0,0.01182995]
[1739246807491,0.20578502,97723.0,97722.0,0.02192679]
[1739246808487,0.20578502,97723.0,97722.0,0.04052366]
[1739246809478,0.20578502,97723.0,97722.0,0.02192679]
[1739246811683,0.20578502,97723.0,97722.0,0.01182995]
[1739246818580,0.20578502,97723.0,97722.0,0.01139361]
[1739246819587,0.20578502,97723.0,97721.0,0.18411379]
[1739246820893,0.00115352,97723.0,97719.0,0.01002582]
[1739246821089,0.2046357,97720.0,97716.0,0.30674033]
[1739246821289,0.00115352,97723.0,97716.0,0.30674033]
[1739246821495,0.2046382,97719.0,97716.0,0.31719048]
[1739246824897,0.2056382,97719.0,97716.0,0.31719048]
[1739246826886,0.001,97719.0,97716.0,0.31719048]
[1739246827085,0.2046405,97718.0,97716.0,0.31719048]
[1739246827893,0.2046405,97718.0,97716.0,0.25589642]
[1739246828093,0.2056405,97718.0,97716.0,0.25589642]
[1739246831494,0.2056405,97718.0,97717.0,0.24544627]
[1739246835301,0.2056405,97718.0,97717.0,0.37584143]
[1739246841010,0.2056405,97718.0,97717.0,0.30685068]
[1739246848018,0.2056405,97718.0,97717.0,0.51149268]
[1739246848212,0.2056405,97718.0,97717.0,0.57871933]
[1739246852223,0.2056405,97718.0,97717.0,0.45006779]
[1739246858332,0.2056405,97718.0,97717.0,0.204642]
[1739246859939,0.001,97718.0,97717.0,0.204642]
[1739246860749,0.001,97718.0,97717.0,0.22063754]
[1739246861641,0.001,97718.0,97717.0,0.52741978]
[1739246862045,0.001,97718.0,97717.0,0.53868892]
[1739246863046,0.001,97718.0,97717.0,0.52741978]
[1739246864040,0.001,97718.0,97717.0,0.51142424]
[1739246865744,0.001,97718.0,97717.0,0.204642]
[1739246872356,0.204642,97717.0,97716.0,0.01045015]
[1739246872654,0.204642,97717.0,97714.0,0.30678224]
[1739246873446,0.205642,97717.0,97714.0,0.51143034]
[1739246873853,0.205642,97717.0,97715.0,0.2046454]
[1739246874156,0.2046319,97722.0,97716.0,0.01136929]
[1739246874347,0.2046319,97722.0,97717.0,0.01136929]
[1739246874549,0.2046319,97722.0,97718.0,0.01136929]
[1739246874745,0.2046319,97722.0,97719.0,0.01136929]
[1739246874944,0.2046319,97722.0,97720.0,0.01136929]
[1739246875144,0.2046319,97722.0,97721.0,0.01136929]
[1739246876552,0.2056319,97722.0,97721.0,0.01136929]
[1739246876747,0.2056319,97722.0,97716.0,0.78328606]
[1739246876952,0.2056319,97722.0,97717.0,0.01150133]
[1739246877257,0.2056319,97722.0,97718.0,0.01150133]
[1739246877448,0.2056319,97722.0,97719.0,0.01150133]
[1739246877646,0.2056319,97722.0,97721.0,0.41420738]
[1739246877841,0.2056319,97722.0,97721.0,0.42570871]
[1739246878957,0.2056319,97722.0,97721.0,0.42570764]
[1739246880070,0.2046319,97722.0,97721.0,0.42570764]
[1739246880357,0.2056319,97722.0,97721.0,0.42570764]
[1739246880864,0.2056319,97722.0,97721.0,0.42571739]
[1739246882753,0.2056319,97722.0,97721.0,0.41420738]
[1739246882953,0.2056319,97722.0,97721.0,0.42565289]
[1739246885061,0.2056319,97722.0,97721.0,0.41420738]
[1739246885370,0.2719119,97722.0,97721.0,0.41420738]
[1739246885676,0.9619119,97722.0,97721.0,0.01979475]
[1739246885859,0.75728,97722.0,97718.0,0.36855868]
[1739246886060,0.2046378,97719.0,97718.0,0.36855868]
[1739246886768,0.8946378,97719.0,97718.0,0.36855868]
[1739246888774,0.8956378,97719.0,97718.0,0.36855868]
[1739246888974,0.691,97719.0,97707.0,0.18393165]
[1739246889174,0.2046608,97708.0,97707.0,0.18393165]
[1739246890169,0.2046608,97708.0,97707.0,0.18993165]
[1739246890963,0.2046608,97708.0,97707.0,0.19193165]
[1739246892364,0.2046608,97708.0,97707.0,0.18593165]
[1739246892565,0.2046608,97708.0,97707.0,0.19193165]
[1739246892778,0.2046608,97708.0,97707.0,0.008]
[1739246895765,0.2046608,97708.0,97707.0,0.01850598]
[1739246898573,0.2046608,97708.0,97707.0,0.26374818]
[1739246901875,0.2046608,97708.0,97707.0,0.01850598]
[1739246903170,0.2046608,97708.0,97707.0,0.0298481]
[1739246905285,0.2046608,97708.0,97707.0,0.21354789]
[1739246906376,0.2046608,97708.0,97707.0,0.20220577]
[1739246906984,0.2046608,97708.0,97707.0,0.19169979]
[1739246907183,0.5654608,97708.0,97707.0,0.19169979]
[1739246907591,1.2554608,97708.0,97707.0,0.19169979]
[1739246908594,1.2554608,97708.0,97707.0,0.008]
[1739246910288,0.5654608,97708.0,97707.0,0.008]
[1739246910694,1.0488,97708.0,97694.0,7e-08]
[1739246910994,0.2047048,97687.0,97686.0,0.04469443]
[1739246911294,0.6319448,97687.0,97686.0,0.04469443]
[1739246911793,1.3219448,97687.0,97685.0,0.04469443]
[1739246912481,1.3219448,97687.0,97686.0,0.006]
[1739246912883,1.33214258,97687.0,97686.0,0.006]
[1739246913480,0.2047237,97678.0,97677.0,0.00015352]
[1739246913685,0.5655237,97678.0,97677.0,0.00015352]
[1739246914287,1.2555237,97678.0,97677.0,0.00015352]
[1739246914693,1.2555237,97678.0,97677.0,0.00515352]
[1739246915686,1.2565237,97678.0,97677.0,0.01515352]
[1739246916496,0.5665237,97678.0,97677.0,0.01515352]
[1739246917203,0.5705237,97678.0,97677.0,0.01015352]
[1739246917787,0.5695237,97678.0,97677.0,0.00015352]
[1739246917986,0.5825237,97678.0,97677.0,0.00115352]
[1739246922700,0.6490037,97678.0,97677.0,0.00115352]
[1739246930719,1.3390037,97678.0,97677.0,0.00115352]
[1739246932815,1.2725237,97678.0,97677.0,0.00115352]
[1739246948029,0.204753,97664.0,97663.0,0.18374933]
[1739246948223,0.632713,97664.0,97663.0,0.18374933]
[1739246948624,1.322713,97664.0,97663.0,0.18374933]
[1739246949530,1.323713,97664.0,97663.0,0.18374933]
[1739246950833,0.2047719,97655.0,97654.0,0.00015352]
[1739246951030,0.5655719,97655.0,97654.0,0.00015352]
[1739246951538,1.2555719,97655.0,97654.0,0.00015352]
[1739246952637,1.2555719,97655.0,97654.0,0.00315352]
[1739246953224,1.2555719,97655.0,97654.0,0.00815352]
[1739246954037,1.6163719,97655.0,97654.0,0.00815352]
[1739246979341,1.66617204,97655.0,97654.0,0.00815352]
[1739246982448,0.97617204,97655.0,97654.0,0.00815352]
[1739246986955,0.9263719,97655.0,97654.0,0.00815352]
[1739246987655,0.9263719,97655.0,97654.0,0.03905352]
[1739246989256,0.5655719,97655.0,97654.0,0.03905352]
[1739247001472,0.5655719,97655.0,97654.0,0.00815352]
[1739247009071,1.2555719,97655.0,97654.0,0.00815352]
[1739247011872,1.30537093,97655.0,97654.0,0.00815352]
[1739247014679,1.37197093,97655.0,97654.0,0.00815352]
[1739247018674,1.47546375,97655.0,97654.0,0.00815352]
[1739247026887,1.3719719,97655.0,97654.0,0.00815352]
[1739247029183,1.0111719,97655.0,97654.0,0.00815352]
[1739247029379,1.3719719,97655.0,97654.0,0.00815352]
[1739247033090,1.0111719,97655.0,97654.0,0.00815352]
[1739247033391,1.3719719,97655.0,97654.0,0.00815352]
[1739247037581,1.3053719,97655.0,97654.0,0.00815352]
[1739247038586,0.0498,97655.0,97654.0,0.00815352]
[1739247039086,0.0498,97655.0,97654.0,0.04055352]
[1739247039292,0.0498,97655.0,97654.0,0.43415352]
[1739247039993,0.0498,97655.0,97654.0,0.07335352]
[1739247040181,0.2545719,97655.0,97654.0,0.07335352]
[1739247041993,0.2047719,97655.0,97654.0,0.07335352]
[1739247049406,0.05049676,97664.0,97654.0,0.07335352]
[1739247049605,0.2047599,97661.0,97658.0,0.2047646]
[1739247049814,0.2047599,97661.0,97659.0,0.0331]
[1739247051810,0.2047599,97661.0,97659.0,0.0351]
[1739247052721,0.2047599,97661.0,97659.0,0.2398632]
[1739247052911,0.2047599,97661.0,97659.0,0.2408632]
[1739247055809,0.2047599,97661.0,97659.0,0.25091949]
[1739247057716,0.2047599,97661.0,97659.0,0.2408632]
[1739247062213,0.2047599,97661.0,97659.0,0.003]
[1739247062418,0.0303,97660.0,97659.0,0.003]
[1739247062617,0.7203,97660.0,97659.0,0.003]
[1739247063525,0.7203,97660.0,97659.0,0.001]
[1739247063728,0.73043051,97660.0,97659.0,0.003]
[1739247064520,0.04043051,97660.0,97659.0,0.003]
[1739247066728,0.40123051,97660.0,97659.0,0.003]
[1739247072229,0.04043051,97660.0,97659.0,0.003]
[1739247072529,0.40123051,97660.0,97659.0,0.003]
[1739247073027,1.09123051,97660.0,97659.0,0.003]
[1739247073728,1.15755051,97660.0,97659.0,0.003]
[1739247073931,0.2047719,97655.0,97654.0,0.00015352]
[1739247074516,0.8947719,97655.0,97654.0,0.00015352]
[1739247076125,0.8947719,97655.0,97654.0,0.00815352]
[1739247077328,1.6163719,97655.0,97654.0,0.00815352]
[1739247078141,0.8947719,97655.0,97654.0,0.00815352]
[1739247078328,1.6163719,97655.0,97654.0,0.00815352]
[1739247080833,1.6163719,97655.0,97654.0,0.005]
[1739247081028,0.2047949,97644.0,97643.0,0.00063249]
[1739247081228,0.5655949,97644.0,97643.0,0.00063249]
[1739247081531,0.3608,97644.0,97632.0,0.18553064]
[1739247081754,0.565618,97633.0,97632.0,0.18553064]
[1739247082932,0.565618,97633.0,97632.0,0.19253064]
[1739247083536,0.566618,97633.0,97632.0,0.20753064]
[1739247085231,0.566618,97633.0,97632.0,0.02353634]
[1739247085433,0.57678303,97633.0,97632.0,0.02353634]
[1739247088830,0.21598303,97633.0,97632.0,0.02353634]
[1739247089037,0.57678303,97633.0,97632.0,0.02353634]